[Event "RUS-chT Premier 2019"]
[Site "Sochi"]
[Date "2019.05.01"]
[Round "1.4"]
[White "Shubin, Kirill"]
[Black "Yuffa, Daniil"]
[Result "1-0"]
[ECO "D02"]
[WhiteElo "2404"]
[BlackElo "2595"]
[Annotator "ChessBase"]
[PlyCount "113"]
[EventDate "2019.04.30"]
[EventType "team-tourn"]
[EventCountry "RUS"]
[SourceTitle "playchess.com"]
[Source "ChessBase"]
[SourceQuality "1"]
[TimeControl "40/5400+30:1800+30"]

1. d4 {[%emt 0:00:00]} Nf6 {[%emt 0:00:35]} 2. Nf3 {[%emt 0:00:00]} d5 {[%emt 0:00:37]} 3. Bf4 {[%emt 0:00:00]} c5 {[%emt 0:02:27]} 4. e3 {[%emt 0:00:00]} Nc6 {[%emt 0:02:16]} 5. Nbd2 {[%emt 0:00:04]} Bg4 {[%emt 0:03:04]} 6. c3 {[%emt 0:03:20]} e6 {[%emt 0:00:24]} 7. Qb3 {[%emt 0:03:31]} Qc8 {[%emt 0:02:32]} 8. Ne5 {[%emt 0:10:51]} Nxe5 {[%emt 0:02:49]} 9. Bxe5 {[%emt 0:01:44]} Nd7 {[%emt 0:05:55]} 10. h3 {[%emt 0:09:02]} Bh5 {[%emt 0:02:42]} 11. c4 {[%emt 0:00:16]} Qc6 {[%emt 0:08:02]} 12. cxd5 {[%emt 0:03:24]} Qxd5 {[%emt 0:00:15]} 13. Qa4 {[%emt 0:04:32]} cxd4 {[%emt 0:12:08]} 14. Bxd4 {[%emt 0:00:03]} a6 {[%emt 0:01:32]} 15. e4 {[%emt 0:06:35]} Qd6 {[%emt 0:02:24]} 16. Bc3 {[%emt 0:01:47]} Rc8 {[%emt 0:03:48]} 17. Nc4 {[%emt 0:03:25]} Qc7 {[%emt 0:03:20]} 18. Ne5 {[%emt 0:04:26]} f6 {[%emt 0:14:52]} 19. Nxd7 {[%emt 0:01:10]} Qxd7 {[%emt 0:00:15]} 20. Qxd7+ {[%emt 0:00:33]} Kxd7 {[%emt 0:00:04]} 21. e5 {[%emt 0:03:06]} f5 {[%emt 0:05:57]} 22. g4 {[%emt 0:00:12]} fxg4 {[%emt 0:00:37]} 23. Rd1+ {[%emt 0:02:25]} Ke8 {[%emt 0:02:51]} 24. Be2 {[%emt 0:00:12]} Bc5 {[%emt 0:00:47]} 25. hxg4 {[%emt 0:01:20]} Bg6 {[%emt 0:01:00]} 26. f3 {[%emt 0:07:51]} Ke7 {[%emt 0:01:50]} 27. Bd3 {[%emt 0:00:42]} b5 {[%emt 0:01:47]} 28. Ke2 {[%emt 0:01:35]} Kf7 {[%emt 0:04:16]} 29. f4 {[%emt 0:03:23]} b4 {[%emt 0:03:47]} 30. Be1 {[%emt 0:00:07]} Bxd3+ {[%emt 0:01:12]} 31. Rxd3 {[%emt 0:01:05]} Be7 {[%emt 0:02:25]} 32. Rd7 {[%emt 0:00:35]} Rhd8 {[%emt 0:05:33]} 33. Rxe7+ {[%emt 0:01:38]} Kxe7 {[%emt 0:00:02]} 34. Bh4+ {[%emt 0:00:05]} Ke8 {[%emt 0:00:59]} 35. Bxd8 {[%emt 0:00:04]} Kxd8 {[%emt 0:00:03]} 36. Kd3 {[%emt 0:00:14]} h6 {[%emt 0:00:52]} 37. g5 {[%emt 0:02:10]} hxg5 {[%emt 0:00:37]} 38. Rh8+ {[%emt 0:00:08]} Kd7 {[%emt 0:00:03]} 39. Rxc8 {[%emt 0:00:05]} Kxc8 {[%emt 0:00:01]} 40. fxg5 {[%emt 0:00:00]} Kc7 {[%emt 0:00:00]} 41. Kc4 {[%emt 0:00:09]} Kc6 {[%emt 0:01:37]} 42. Kxb4 {[%emt 0:00:04]} Kd5 {[%emt 0:00:03]} 43. Kc3 {[%emt 0:00:22]} Kxe5 {[%emt 0:00:11]} 44. b4 {[%emt 0:00:06]} Ke4 {[%emt 0:07:43]} 45. a4 {[%emt 0:02:38]} Kd5 {[%emt 0:00:40]} 46. Kd3 {[%emt 0:01:12]} g6 {[%emt 0:10:53]} 47. b5 {[%emt 0:00:26]} a5 {[%emt 0:00:25]} 48. Ke3 {[%emt 0:00:05]} Ke5 {[%emt 0:00:25]} 49. Kf3 {[%emt 0:00:04]} Kd5 {[%emt 0:00:10]} 50. Kf4 {[%emt 0:00:04]} e5+ {[%emt 0:00:55]} 51. Ke3 {[%emt 0:00:04]} Kc5 {[%emt 0:00:15]} 52. Ke4 {[%emt 0:00:13]} Kd6 {[%emt 0:00:06]} 53. b6 {[%emt 0:00:31]} Kc6 {[%emt 0:00:04]} 54. Kxe5 {[%emt 0:00:04]} Kxb6 {[%emt 0:00:03]} 55. Kf6 {[%emt 0:00:38]} Kc5 {[%emt 0:00:17]} 56. Kxg6 {[%emt 0:00:04]} Kb4 {[%emt 0:00:04]} 57. Kf5 {[%emt 0:00:03]} 1-0

[Event "RUS-chT Premier 2019"]
[Site "Sochi"]
[Date "2019.05.01"]
[Round "1.5"]
[White "Antipov, Mikhail Al."]
[Black "Saveliev, Alexei"]
[Result "1-0"]
[ECO "B41"]
[WhiteElo "2595"]
[BlackElo "2367"]
[Annotator "ChessBase"]
[PlyCount "65"]
[EventDate "2019.04.30"]
[EventType "team-tourn"]
[EventCountry "RUS"]
[SourceTitle "playchess.com"]
[Source "ChessBase"]
[SourceQuality "1"]
[TimeControl "40/5400+30:1800+30"]

1. e4 {[%emt 0:00:00]} c5 {[%emt 0:00:00]} 2. Nf3 {[%emt 0:00:00]} e6 {[%emt 0:00:00]} 3. d4 {[%emt 0:00:00]} cxd4 {[%emt 0:00:00]} 4. Nxd4 {[%emt 0:00:00]} a6 {[%emt 0:00:00]} 5. c4 {[%emt 0:00:00]} Qc7 {[%emt 0:05:35]} 6. Nc3 {[%emt 0:00:00]} Nf6 {[%emt 0:00:11]} 7. a3 {[%emt 0:00:04]} b6 {[%emt 0:03:04]} 8. Be3 {[%emt 0:00:14]} Bb7 {[%emt 0:01:31]} 9. f3 {[%emt 0:00:06]} Be7 {[%emt 0:01:39]} 10. Rc1 {[%emt 0:01:57]} d6 {[%emt 0:00:48]} 11. g4 {[%emt 0:01:25]} h6 {[%emt 0:19:41]} 12. Be2 {[%emt 0:07:56]} Nbd7 {[%emt 0:01:22]} 13. h4 {[%emt 0:03:12]} Rc8 {[%emt 0:11:18]} 14. Rg1 {[%emt 0:08:54]} g6 {[%emt 0:12:02]} 15. b4 {[%emt 0:17:07]} Qd8 {[%emt 0:06:52]} 16. g5 {[%emt 0:04:48]} hxg5 {[%emt 0:05:10]} 17. hxg5 {[%emt 0:03:34]} Nh5 {[%emt 0:00:08]} 18. f4 {[%emt 0:05:54]} e5 {[%emt 0:14:53]} 19. fxe5 {[%emt 0:00:36]} dxe5 {[%emt 0:00:04]} 20. Nf3 {[%emt 0:00:47]} a5 {[%emt 0:02:39]} 21. Qb3 {[%emt 0:02:31]} axb4 {[%emt 0:00:16]} 22. axb4 {[%emt 0:00:07]} Bc6 {[%emt 0:08:11]} 23. Rh1 {[%emt 0:03:56]} Bd6 {[%emt 0:01:26]} 24. Kf2 {[%emt 0:19:47]} Qe7 {[%emt 0:00:06]} 25. Rcd1 {[%emt 0:00:12]} Rd8 {[%emt 0:03:43]} 26. Nd5 {[%emt 0:06:24]} Bxd5 {[%emt 0:00:08]} 27. Rxd5 {[%emt 0:00:05]} O-O {[%emt 0:02:01]} 28. Rxh5 {[%emt 0:01:45]} gxh5 {[%emt 0:00:10]} 29. Nh4 {[%emt 0:00:07]} f6 {[%emt 0:00:59]} 30. Nf5 {[%emt 0:00:59]} fxg5 {[%emt 0:00:20]} 31. Rxd6 {[%emt 0:00:44]} Rf6 {[%emt 0:00:38]} 32. Bxg5 {[%emt 0:01:22]} Qxd6 {[%emt 0:00:23]} 33. c5+ {[%emt 0:00:05]} 1-0

[Event "RUS-chT Premier 2019"]
[Site "Sochi"]
[Date "2019.05.01"]
[Round "1.6"]
[White "Askerov, Marat"]
[Black "Lomasov, Semyon"]
[Result "1/2-1/2"]
[ECO "E16"]
[WhiteElo "2315"]
[BlackElo "2541"]
[Annotator "ChessBase"]
[PlyCount "54"]
[EventDate "2019.04.30"]
[EventType "team-tourn"]
[EventCountry "RUS"]
[SourceTitle "playchess.com"]
[Source "ChessBase"]
[SourceQuality "1"]
[TimeControl "40/5400+30:1800+30"]

1. d4 {[%emt 0:00:00]} Nf6 {[%emt 0:00:00]} 2. c4 {[%emt 0:00:00]} e6 {[%emt 0:00:00]} 3. Nf3 {[%emt 0:00:00]} b6 {[%emt 0:00:00]} 4. g3 {[%emt 0:00:00]} Bb7 {[%emt 0:00:00]} 5. Bg2 {[%emt 0:00:00]} Bb4+ {[%emt 0:00:00]} 6. Bd2 {[%emt 0:02:33]} c5 {[%emt 0:00:03]} 7. Bxb4 {[%emt 0:04:12]} cxb4 {[%emt 0:00:08]} 8. a3 {[%emt 0:00:37]} bxa3 {[%emt 0:01:31]} 9. Rxa3 {[%emt 0:00:06]} a5 {[%emt 0:01:57]} 10. O-O {[%emt 0:03:20]} Na6 {[%emt 0:04:39]} 11. Nc3 {[%emt 0:00:56]} O-O {[%emt 0:01:07]} 12. Re1 {[%emt 0:14:43]} Rc8 {[%emt 0:11:27]} 13. b3 {[%emt 0:07:53]} d5 {[%emt 0:10:02]} 14. Ne5 {[%emt 0:07:05]} Qe7 {[%emt 0:08:09]} 15. Ra1 {[%emt 0:06:10]} dxc4 {[%emt 0:14:10]} 16. Bxb7 {[%emt 0:00:44]} Qxb7 {[%emt 0:00:02]} 17. bxc4 {[%emt 0:00:36]} Rfd8 {[%emt 0:03:44]} 18. Nb5 {[%emt 0:10:01]} Ne4 {[%emt 0:11:44]} 19. Qa4 {[%emt 0:11:19]} Nb4 {[%emt 0:04:35]} 20. Rac1 {[%emt 0:02:38]} f6 {[%emt 0:10:37]} 21. Nf3 {[%emt 0:03:45]} g5 {[%emt 0:00:44]} 22. Qb3 {[%emt 0:06:53]} Kg7 {[%emt 0:06:48]} 23. Qe3 {[%emt 0:01:56]} Na2 {[%emt 0:01:04]} 24. Rc2 {[%emt 0:02:39]} Nb4 {[%emt 0:00:12]} 25. Rcc1 {[%emt 0:00:50]} Na2 {[%emt 0:02:22]} 26. Rc2 {[%emt 0:04:43]} Nb4 {[%emt 0:00:14]} 27. Rcc1 {[%emt 0:00:04]} Na2 1/2-1/2

[Event "RUS-chT Premier 2019"]
[Site "Sochi"]
[Date "2019.05.01"]
[Round "1.12"]
[White "Goganov, Aleksey"]
[Black "Ionov, Sergey"]
[Result "1/2-1/2"]
[ECO "D41"]
[WhiteElo "2570"]
[BlackElo "2530"]
[Annotator "ChessBase"]
[PlyCount "64"]
[EventDate "2019.04.30"]
[EventType "team-tourn"]
[EventCountry "RUS"]
[SourceTitle "playchess.com"]
[Source "ChessBase"]
[SourceQuality "1"]
[TimeControl "40/5400+30:1800+30"]

1. Nf3 {[%emt 0:00:00]} d5 {[%emt 0:00:54]} 2. d4 {[%emt 0:00:00]} Nf6 {[%emt 0:00:25]} 3. c4 {[%emt 0:00:00]} e6 {[%emt 0:00:33]} 4. Nc3 {[%emt 0:00:00]} c5 {[%emt 0:00:45]} 5. cxd5 {[%emt 0:00:05]} Nxd5 {[%emt 0:00:06]} 6. g3 {[%emt 0:03:01]} Nc6 {[%emt 0:29:59]} 7. Bg2 {[%emt 0:02:32]} cxd4 {[%emt 0:09:10]} 8. Nxd4 {[%emt 0:00:09]} Nxc3 {[%emt 0:00:31]} 9. bxc3 {[%emt 0:00:05]} Nxd4 {[%emt 0:00:22]} 10. Qxd4 {[%emt 0:00:05]} Qxd4 {[%emt 0:11:17]} 11. cxd4 {[%emt 0:00:06]} Bb4+ {[%emt 0:01:15]} 12. Bd2 {[%emt 0:00:06]} Bxd2+ {[%emt 0:00:02]} 13. Kxd2 {[%emt 0:00:06]} Ke7 {[%emt 0:00:33]} 14. Rhc1 {[%emt 0:00:16]} Rd8 {[%emt 0:00:04]} 15. Rc7+ {[%emt 0:00:12]} Rd7 {[%emt 0:00:09]} 16. Rac1 {[%emt 0:00:10]} Kd8 {[%emt 0:00:24]} 17. Rxd7+ {[%emt 0:00:09]} Kxd7 {[%emt 0:00:21]} 18. h4 {[%emt 0:00:57]} Rb8 {[%emt 0:05:12]} 19. g4 {[%emt 0:03:10]} b6 {[%emt 0:05:02]} 20. Bc6+ {[%emt 0:05:51]} Kd8 {[%emt 0:01:19]} 21. f4 {[%emt 0:08:25]} Bb7 {[%emt 0:08:21]} 22. Bxb7 {[%emt 0:02:21]} Rxb7 {[%emt 0:00:02]} 23. Kd3 {[%emt 0:00:19]} a6 {[%emt 0:09:46]} 24. f5 {[%emt 0:01:04]} Rc7 {[%emt 0:01:07]} 25. Rf1 {[%emt 0:05:14]} Ke7 {[%emt 0:01:05]} 26. h5 {[%emt 0:16:01]} h6 {[%emt 0:01:48]} 27. fxe6 {[%emt 0:10:47]} fxe6 {[%emt 0:02:12]} 28. g5 {[%emt 0:01:13]} hxg5 {[%emt 0:00:11]} 29. Rg1 {[%emt 0:00:03]} Kf6 {[%emt 0:01:24]} 30. Rf1+ {[%emt 0:00:03]} Ke7 {[%emt 0:00:02]} 31. Rg1 {[%emt 0:00:04]} Kf6 {[%emt 0:00:14]} 32. Rf1+ {[%emt 0:00:04]} Ke7 {[%emt 0:00:05]} 1/2-1/2

[Event "RUS-chT Premier 2019"]
[Site "Sochi"]
[Date "2019.05.01"]
[Round "1.19"]
[White "Iljiushenok, Ilia"]
[Black "Sjugirov, Sanan"]
[Result "0-1"]
[ECO "A22"]
[WhiteElo "2534"]
[BlackElo "2661"]
[Annotator "RC"]
[PlyCount "58"]
[EventDate "2019.04.30"]
[EventType "team-tourn"]
[EventCountry "RUS"]
[SourceTitle "playchess.com"]
[Source "ChessBase"]
[SourceQuality "1"]
[TimeControl "40/5400+30:1800+30"]

1. c4 {[%emt 0:00:00]} e5 {[%emt 0:02:19]} 2. Nc3 {[%emt 0:00:03]} Nf6 {[%emt 0:04:18]} 3. g3 {[%emt 0:00:51]} Bc5 {[%emt 0:05:22]} 4. Bg2 {[%emt 0:03:41]} c6 {[%emt 0:00:25]} 5. e3 {[%emt 0:06:20]} d5 {[%emt 0:04:44]} 6. cxd5 {[%emt 0:04:46]} O-O {[%emt 0:05:11]} 7. Nge2 {[%emt 0:11:11]} Bb6 {[%emt 0:03:10]} 8. d4 {[%emt 0:22:33]} exd4 {[%emt 0:02:40]} 9. Nxd4 {[%emt 0:00:31]} cxd5 {[%emt 0:01:48]} 10. O-O {[%emt 0:00:52]} Bg4 {[%emt 0:03:35]} 11. Qa4 {[%emt 0:09:38]} Na6 {[%emt 0:03:23]} 12. h3 {[%emt 0:07:08]} Bh5 {[%emt 0:01:51]} 13. Qa3 {[%emt 0:06:01]} Re8 {[%emt 0:03:32]} 14. Bd2 {[%emt 0:03:24]} Nc5 {[%emt 0:07:15]} 15. Na4 {[%emt 0:05:19]} Nfe4 {[%emt 0:03:13]} 16. Bc3 {[%emt 0:01:50]} Nxa4 {[%emt 0:05:24]} 17. Qxa4 {[%emt 0:00:03]} Rc8 {[%emt 0:00:45]} 18. Qb3 {[%emt 0:08:26]} Qd7 {[%emt 0:03:17]} 19. Rac1 {[%emt 0:02:27]} Rcd8 {[%emt 0:02:12]} 20. Rc2 {[%emt 0:02:27]} Bg6 {[%emt 0:05:13]} 21. Rcc1 {[%emt 0:01:01]} Bh5 {[%emt 0:05:11]} 22. Rc2 {[%emt 0:00:03]} Nc5 {[%emt 0:00:27]} 23. Qa3 {[%emt 0:00:16]} Bg6 {[%emt 0:00:17]} 24. Rcc1 {[%emt 0:00:52]} Nd3 {[%emt 0:01:03]} 25. Rcd1 {[%emt 0:00:48]} Be4 {[%emt 0:00:26]} 26. Ne2 {[%emt 0:01:14]} Nxf2 {[%emt 0:02:00]} 27. Rxf2 {[%emt 0:00:02]} Bxe3 {[%emt 0:00:07]} 28. Nf4 {[%emt 0:01:17]} d4 {[%emt 0:09:36]} 29. Qc5 {[%emt 0:00:40]} dxc3 {[%emt 0:01:29]} 0-1

[Event "RUS-chT Premier 2019"]
[Site "Sochi"]
[Date "2019.05.01"]
[Round "1.23"]
[White "Bykov, Oleg"]
[Black "Romanov, Evgeny"]
[Result "0-1"]
[ECO "A62"]
[WhiteElo "2395"]
[BlackElo "2573"]
[Annotator "ChessBase"]
[PlyCount "68"]
[EventDate "2019.04.30"]
[EventType "team-tourn"]
[EventCountry "RUS"]
[SourceTitle "playchess.com"]
[Source "ChessBase"]
[SourceQuality "1"]
[TimeControl "40/5400+30:1800+30"]

1. d4 {[%emt 0:00:00]} Nf6 {[%emt 0:00:00]} 2. c4 {[%emt 0:00:00]} e6 {[%emt 0:00:06]} 3. g3 {[%emt 0:01:09]} c5 {[%emt 0:01:39]} 4. d5 {[%emt 0:00:08]} exd5 {[%emt 0:00:21]} 5. cxd5 {[%emt 0:00:05]} d6 {[%emt 0:00:16]} 6. Nc3 {[%emt 0:00:11]} g6 {[%emt 0:00:07]} 7. Bg2 {[%emt 0:00:07]} Bg7 {[%emt 0:00:05]} 8. Nf3 {[%emt 0:00:06]} O-O {[%emt 0:00:06]} 9. O-O {[%emt 0:00:05]} Na6 {[%emt 0:03:31]} 10. Nd2 {[%emt 0:00:22]} Nc7 {[%emt 0:01:09]} 11. a4 {[%emt 0:07:14]} b6 {[%emt 0:01:04]} 12. e4 {[%emt 0:01:08]} Ba6 {[%emt 0:17:28]} 13. Re1 {[%emt 0:00:16]} Nd7 {[%emt 0:00:11]} 14. Nf3 {[%emt 0:09:04]} Qe7 {[%emt 0:08:23]} 15. Bf4 {[%emt 0:11:25]} Rad8 {[%emt 0:00:26]} 16. Qd2 {[%emt 0:03:45]} Ne5 {[%emt 0:05:58]} 17. Bh6 {[%emt 0:08:14]} Nc4 {[%emt 0:13:42]} 18. Qc1 {[%emt 0:00:35]} Bxh6 {[%emt 0:00:31]} 19. Qxh6 {[%emt 0:00:06]} Nxb2 {[%emt 0:03:05]} 20. e5 {[%emt 0:03:17]} dxe5 {[%emt 0:11:03]} 21. d6 {[%emt 0:26:30]} Rxd6 {[%emt 0:01:30]} 22. Rxe5 {[%emt 0:00:11]} Qd7 {[%emt 0:09:06]} 23. Rae1 {[%emt 0:05:54]} Ne6 {[%emt 0:01:24]} 24. Bh3 {[%emt 0:01:49]} Nd3 {[%emt 0:09:34]} 25. Ng5 {[%emt 0:19:16]} Nxg5 {[%emt 0:00:29]} 26. Bxd7 {[%emt 0:00:30]} Nf3+ {[%emt 0:00:47]} 27. Kh1 {[%emt 0:00:03]} Nfxe5 {[%emt 0:01:34]} 28. Rxe5 {[%emt 0:01:28]} Nxe5 {[%emt 0:00:16]} 29. Bb5 {[%emt 0:00:23]} Bb7+ {[%emt 0:00:32]} 30. Kg1 {[%emt 0:00:14]} c4 {[%emt 0:03:18]} 31. Qf4 {[%emt 0:01:06]} Re6 {[%emt 0:01:51]} 32. f3 {[%emt 0:00:39]} Nxf3+ {[%emt 0:00:42]} 33. Kf2 {[%emt 0:00:32]} Ne5 {[%emt 0:00:10]} 34. Kf1 {[%emt 0:00:19]} Nd3 {[%emt 0:00:31]} 0-1

[Event "RUS-chT Premier 2019"]
[Site "Sochi"]
[Date "2019.05.01"]
[Round "1.28"]
[White "Bocharov, Dmitry"]
[Black "Faizrakhmanov, Ramil"]
[Result "1/2-1/2"]
[ECO "A17"]
[WhiteElo "2530"]
[BlackElo "2438"]
[Annotator "ChessBase"]
[PlyCount "103"]
[EventDate "2019.04.30"]
[EventType "team-tourn"]
[EventCountry "RUS"]
[SourceTitle "playchess.com"]
[Source "ChessBase"]
[SourceQuality "1"]
[TimeControl "40/5400+30:1800+30"]

1. Nf3 {[%emt 0:00:00]} Nf6 {[%emt 0:00:00]} 2. c4 {[%emt 0:00:21]} e6 {[%emt 0:00:39]} 3. Nc3 {[%emt 0:00:19]} Bb4 {[%emt 0:01:04]} 4. g4 {[%emt 0:01:19]} h6 {[%emt 0:06:51]} 5. Rg1 {[%emt 0:01:37]} Bxc3 {[%emt 0:03:11]} 6. bxc3 {[%emt 0:08:54]} b6 {[%emt 0:04:22]} 7. d3 {[%emt 0:03:37]} Bb7 {[%emt 0:02:13]} 8. e4 {[%emt 0:04:01]} d6 {[%emt 0:02:18]} 9. h4 {[%emt 0:04:59]} Nc6 {[%emt 0:02:52]} 10. g5 {[%emt 0:06:47]} hxg5 {[%emt 0:00:57]} 11. hxg5 {[%emt 0:00:05]} Nd7 {[%emt 0:00:16]} 12. Be3 {[%emt 0:02:57]} Qe7 {[%emt 0:02:01]} 13. Qc2 {[%emt 0:02:42]} Nce5 {[%emt 0:11:09]} 14. Nd2 {[%emt 0:07:07]} Ng6 {[%emt 0:03:52]} 15. O-O-O {[%emt 0:08:45]} e5 {[%emt 0:03:52]} 16. Be2 {[%emt 0:11:37]} O-O-O {[%emt 0:01:49]} 17. Bg4 {[%emt 0:04:01]} Kb8 {[%emt 0:01:58]} 18. d4 {[%emt 0:09:02]} Ndf8 {[%emt 0:03:06]} 19. d5 {[%emt 0:07:15]} Nf4 {[%emt 0:04:50]} 20. Nf3 {[%emt 0:08:39]} N8g6 {[%emt 0:05:59]} 21. Rh1 {[%emt 0:00:39]} c6 {[%emt 0:08:53]} 22. Kb2 {[%emt 0:01:48]} Qc7 {[%emt 0:03:40]} 23. Nd2 {[%emt 0:01:15]} Bc8 {[%emt 0:08:20]} 24. Bf5 {[%emt 0:00:39]} Bd7 {[%emt 0:06:54]} 25. Bxg6 {[%emt 0:02:00]} Nxg6 {[%emt 0:00:50]} 26. Qd3 {[%emt 0:00:20]} Bc8 {[%emt 0:01:25]} 27. Nb1 {[%emt 0:01:21]} Rxh1 {[%emt 0:03:16]} 28. Rxh1 {[%emt 0:00:13]} Ba6 {[%emt 0:00:16]} 29. Na3 {[%emt 0:00:38]} Rh8 {[%emt 0:04:54]} 30. Rxh8+ {[%emt 0:00:20]} Nxh8 {[%emt 0:00:01]} 31. dxc6 {[%emt 0:01:05]} Qxc6 {[%emt 0:00:52]} 32. Nb5 {[%emt 0:00:27]} Bxb5 {[%emt 0:00:50]} 33. cxb5 {[%emt 0:00:04]} Qd7 {[%emt 0:01:24]} 34. f4 {[%emt 0:00:05]} Ng6 {[%emt 0:00:42]} 35. f5 {[%emt 0:00:56]} Ne7 {[%emt 0:00:54]} 36. a4 {[%emt 0:01:06]} g6 {[%emt 0:00:53]} 37. f6 {[%emt 0:00:27]} Nc8 {[%emt 0:00:20]} 38. c4 {[%emt 0:00:24]} Qb7 {[%emt 0:00:44]} 39. Bd2 {[%emt 0:00:17]} Qd7 {[%emt 0:00:25]} 40. Bb4 {[%emt 0:00:10]} Qe6 {[%emt 0:00:14]} 41. Bd2 {[%emt 0:31:10]} Kb7 {[%emt 0:02:47]} 42. Be3 {[%emt 0:00:00]} Kb8 {[%emt 0:00:32]} 43. Kb3 {[%emt 0:00:00]} Qd7 {[%emt 0:02:44]} 44. Kb4 {[%emt 0:00:00]} Qc7 {[%emt 0:01:56]} 45. Qd5 {[%emt 0:00:00]} Qb7 {[%emt 0:00:12]} 46. Qd3 {[%emt 0:00:00]} Qc7 {[%emt 0:00:17]} 47. Kb3 {[%emt 0:00:00]} Qd7 {[%emt 0:00:29]} 48. Bd2 {[%emt 0:00:00]} Qe6 {[%emt 0:02:59]} 49. a5 {[%emt 0:00:00]} Kc7 {[%emt 0:04:44]} 50. axb6+ {[%emt 0:00:00]} axb6 {[%emt 0:00:53]} 51. Kc2 {[%emt 0:00:00]} Kb8 {[%emt 0:01:30]} 52. Bb4 {[%emt 0:00:00]} 1/2-1/2

[Event "RUS-chT Premier 2019"]
[Site "Sochi"]
[Date "2019.05.01"]
[Round "1.29"]
[White "Makhmutov, Rail"]
[Black "Kezin, Roman"]
[Result "1/2-1/2"]
[ECO "E06"]
[WhiteElo "2390"]
[BlackElo "2468"]
[Annotator "ChessBase"]
[PlyCount "106"]
[EventDate "2019.04.30"]
[EventType "team-tourn"]
[EventCountry "RUS"]
[SourceTitle "playchess.com"]
[Source "ChessBase"]
[SourceQuality "1"]
[TimeControl "40/5400+30:1800+30"]

1. d4 {[%emt 0:00:00]} d5 {[%emt 0:00:00]} 2. c4 {[%emt 0:00:00]} e6 {[%emt 0:00:00]} 3. Nf3 {[%emt 0:00:00]} Nf6 {[%emt 0:00:20]} 4. g3 {[%emt 0:00:17]} Be7 {[%emt 0:01:01]} 5. Bg2 {[%emt 0:00:14]} O-O {[%emt 0:00:10]} 6. O-O {[%emt 0:00:49]} dxc4 {[%emt 0:00:44]} 7. Ne5 {[%emt 0:03:16]} c5 {[%emt 0:01:21]} 8. dxc5 {[%emt 0:00:34]} Qc7 {[%emt 0:00:06]} 9. Nxc4 {[%emt 0:01:18]} Qxc5 {[%emt 0:02:14]} 10. b3 {[%emt 0:01:43]} Rd8 {[%emt 0:00:06]} 11. Nbd2 {[%emt 0:00:54]} Nc6 {[%emt 0:00:11]} 12. e3 {[%emt 0:00:37]} Qb5 {[%emt 0:07:06]} 13. Bb2 {[%emt 0:07:19]} Bd7 {[%emt 0:01:41]} 14. Ne4 {[%emt 0:21:48]} Be8 {[%emt 0:02:40]} 15. Qe2 {[%emt 0:03:56]} Nxe4 {[%emt 0:33:49]} 16. Bxe4 {[%emt 0:00:04]} f6 {[%emt 0:05:02]} 17. Rfd1 {[%emt 0:15:09]} Bh5 {[%emt 0:07:54]} 18. Bf3 {[%emt 0:02:14]} Bxf3 {[%emt 0:08:23]} 19. Qxf3 {[%emt 0:00:02]} Qf5 {[%emt 0:08:48]} 20. Qxf5 {[%emt 0:16:33]} exf5 {[%emt 0:00:08]} 21. Bc3 {[%emt 0:04:00]} Kf7 {[%emt 0:03:42]} 22. a4 {[%emt 0:01:56]} Ke6 {[%emt 0:01:09]} 23. Kf1 {[%emt 0:05:06]} Rac8 {[%emt 0:09:53]} 24. Rxd8 {[%emt 0:03:20]} Rxd8 {[%emt 0:01:53]} 25. Na5 {[%emt 0:02:36]} Nxa5 {[%emt 0:01:31]} 26. Bxa5 {[%emt 0:00:01]} Rc8 {[%emt 0:00:52]} 27. Rd1 {[%emt 0:01:04]} Rc2 {[%emt 0:00:08]} 28. Be1 {[%emt 0:03:00]} Rb2 {[%emt 0:02:02]} 29. Rd3 {[%emt 0:00:11]} g5 {[%emt 0:00:47]} 30. h3 {[%emt 0:00:55]} h5 {[%emt 0:00:05]} 31. Bd2 {[%emt 0:02:25]} Rb1+ {[%emt 0:00:10]} 32. Ke2 {[%emt 0:01:30]} Rh1 {[%emt 0:01:31]} 33. Rc3 {[%emt 0:01:40]} Kd7 {[%emt 0:00:01]} 34. Rd3+ {[%emt 0:00:36]} Ke6 {[%emt 0:00:01]} 35. Rc3 {[%emt 0:00:07]} Bd6 {[%emt 0:00:30]} 36. Rc8 {[%emt 0:00:49]} Rb1 {[%emt 0:00:08]} 37. Rh8 {[%emt 0:01:20]} Rxb3 {[%emt 0:00:07]} 38. Rxh5 {[%emt 0:00:07]} Rb2 {[%emt 0:02:09]} 39. Kd3 {[%emt 0:00:58]} Bb4 {[%emt 0:00:34]} 40. Bxb4 {[%emt 0:00:00]} Rxb4 {[%emt 0:00:00]} 41. a5 {[%emt 0:13:49]} Ra4 {[%emt 0:10:46]} 42. Rh7 {[%emt 0:00:59]} Rxa5 {[%emt 0:00:10]} 43. Rxb7 {[%emt 0:00:08]} Ra2 {[%emt 0:00:59]} 44. f4 {[%emt 0:04:15]} Rg2 {[%emt 0:04:41]} 45. fxg5 {[%emt 0:02:43]} fxg5 {[%emt 0:00:13]} 46. g4 {[%emt 0:01:23]} fxg4 {[%emt 0:01:05]} 47. hxg4 {[%emt 0:00:06]} Rxg4 {[%emt 0:01:05]} 48. Rxa7 {[%emt 0:00:07]} Rb4 {[%emt 0:00:10]} 49. Ke2 {[%emt 0:00:20]} Kf6 {[%emt 0:00:10]} 50. Kf3 {[%emt 0:00:12]} Rc4 {[%emt 0:00:02]} 51. Ra6+ {[%emt 0:00:26]} Kf5 {[%emt 0:00:03]} 52. Ra5+ {[%emt 0:00:08]} Kf6 {[%emt 0:00:03]} 53. Ra6+ {[%emt 0:00:06]} Ke5 {Ke4+} 1/2-1/2